bitfinex-derivatives/quotes_SOLF0:USTF0_20250424
["timestamp","ask_amount","ask_price","bid_price","bid_amount"]
[1745530498642,6.6481,150.36,150.34,6.6487]
[1745530498843,6.6481,150.36,150.31,9.69695502]
[1745530499047,16.34455502,150.37,150.34,6.6487]
[1745530503041,9.69695502,150.37,150.33,9.69695502]
[1745530503344,9.69695502,150.37,150.35,6.6481]
[1745530503642,9.69695502,150.37,150.33,9.69695502]
[1745530503843,9.69695502,150.37,150.35,6.6481]
[1745530504940,9.69695502,150.37,150.36,6.6479]
[1745530505146,6.6472,150.38,150.36,6.6479]
[1745530505939,41.60375502,150.39,150.36,6.6479]
[1745530506446,16.34375502,150.39,150.36,6.6479]
[1745530507248,16.34375502,150.39,150.37,6.6473]
[1745530508252,6.6463,150.4,150.37,6.6473]
[1745530508545,9.69695502,150.41,150.38,6.6469]
[1745530509247,6.6462,150.4,150.38,6.6469]
[1745530510348,16.34275502,150.41,150.39,6.6465]
[1745530513454,9.69695502,150.41,150.39,6.6465]
[1745530514550,9.69695502,150.41,150.4,6.6461]
[1745530515242,9.69695502,150.41,150.39,6.6463]
[1745530515444,9.69695502,150.42,150.37,9.69695502]
[1745530515651,9.69695502,150.42,150.37,34.77695502]
[1745530515851,16.34245502,150.42,150.4,6.6459]
[1745530516345,9.69695502,150.42,150.4,6.6459]
[1745530517145,25.08,150.45,150.37,34.77695502]
[1745530517146,6.6444,150.44,150.39,9.69695502]
[1745530517553,9.69695502,150.45,150.39,9.69695502]
[1745530517852,9.69695502,150.45,150.41,9.69695502]
[1745530518354,9.69695502,150.45,150.42,6.6448]
[1745530518650,9.69695502,150.45,150.41,9.69695502]
[1745530518856,16.34065502,150.46,150.43,6.6447]
[1745530520154,9.69695502,150.46,150.44,6.6443]
[1745530520854,31.7232,150.47,150.44,6.6443]
[1745530521051,41.42015502,150.47,150.44,6.6443]
[1745530521450,9.69695502,150.48,150.41,34.77695502]
[1745530521652,9.69695502,150.48,150.43,9.69695502]
[1745530522161,16.33985502,150.48,150.45,6.6439]
[1745530522858,6.643,150.47,150.44,6.6441]
[1745530523063,9.69695502,150.46,150.41,25.08]
[1745530523561,16.34075502,150.46,150.42,6.6449]
[1745530523757,16.34075502,150.46,150.41,25.08]
[1745530524158,16.34075502,150.46,150.42,6.645]
[1745530525164,6.6439,150.45,150.42,6.645]
[1745530525363,9.69695502,150.46,150.43,6.6447]
[1745530526468,16.34075502,150.46,150.43,6.6447]
[1745530527466,16.34075502,150.46,150.44,6.6443]
[1745530527968,9.69695502,150.46,150.44,6.6443]
[1745530528170,9.69695502,150.46,150.43,6.6446]
[1745530528667,16.34065502,150.46,150.43,6.6446]
[1745530529669,16.34065502,150.46,150.44,6.6442]
[1745530529966,6.6431,150.47,150.44,6.6442]
[1745530530466,6.6435,150.46,150.44,6.6442]
[1745530531068,6.6431,150.47,150.44,6.6442]
[1745530533971,6.6431,150.47,150.42,9.69695502]
[1745530534368,9.69695502,150.48,150.42,9.69695502]
[1745530534669,9.69695502,150.48,150.44,6.6441]
[1745530534870,6.6432,150.47,150.44,6.6441]
[1745530535370,9.69695502,150.48,150.42,9.69695502]
[1745530535671,34.77695502,150.5,150.44,9.69695502]
[1745530535871,6.6424,150.49,150.46,6.6432]
[1745530537573,16.33865502,150.5,150.47,6.643]
[1745530541977,16.33865502,150.5,150.48,6.6424]
[1745530542179,6.6415,150.51,150.48,6.6424]
[1745530543179,41.01795502,150.52,150.46,9.69695502]
[1745530543579,16.33795502,150.52,150.46,9.69695502]
[1745530543783,16.33795502,150.52,150.49,6.6418]
[1745530543973,6.6406,150.53,150.5,9.69695502]
[1745530544171,9.69695502,150.54,150.5,9.69695502]
[1745530544377,9.69695502,150.54,150.51,6.6412]
[1745530544680,16.33705502,150.54,150.51,6.6412]
[1745530548183,16.33705502,150.54,150.5,9.69695502]
[1745530548584,9.69695502,150.56,150.5,9.69695502]
[1745530548883,9.69695502,150.56,150.53,6.6401]
[1745530549386,16.33615502,150.56,150.53,6.6401]
[1745530549684,16.33615502,150.56,150.5,11.56975502]
[1745530550280,6.6388,150.57,150.52,9.69695502]
[1745530551286,9.69695502,150.58,150.52,9.69695502]
[1745530551785,6.6386,150.57,150.52,9.69695502]
[1745530552185,6.6386,150.57,150.55,6.6394]
[1745530552390,16.33525502,150.58,150.55,6.6394]
[1745530552589,9.69695502,150.58,150.55,6.6394]
[1745530552780,9.69695502,150.58,150.54,6.6398]
[1745530553086,6.6389,150.57,150.54,6.6398]
[1745530553889,9.69695502,150.56,150.5,35.86975502]
[1745530554392,6.6406,150.53,150.5,42.51125502]
[1745530554688,9.69695502,150.54,150.5,33.99695502]
[1745530555092,16.33725502,150.54,150.5,33.99695502]
[1745530555486,6.6404,150.53,150.5,33.99695502]
[1745530555691,6.6404,150.53,150.5,40.63865502]
[1745530555996,9.69695502,150.54,150.5,40.63865502]
[1745530556293,16.33705502,150.54,150.5,40.63865502]
[1745530557098,6.6401,150.54,150.5,40.63865502]
[1745530557294,6.6401,150.54,150.51,6.6412]
[1745530557796,16.33665502,150.55,150.51,6.6412]
[1745530559396,16.33665502,150.55,150.52,6.6408]
[1745530559797,6.6397,150.55,150.52,6.6408]
[1745530559998,6.6397,150.55,150.51,6.641]
[1745530560298,9.69695502,150.56,150.52,9.69695502]
[1745530560500,30.939,150.57,150.52,9.69695502]
[1745530561297,9.69695502,150.58,150.52,9.69695502]
[1745530561491,9.69695502,150.58,150.54,9.69695502]
[1745530562499,16.33535502,150.58,150.55,6.6392]
[1745530564002,9.69695502,150.58,150.55,6.6392]
[1745530564203,9.69695502,150.58,150.56,6.639]
[1745530564600,40.63445502,150.6,150.54,9.69695502]
[1745530564798,40.63445502,150.6,150.57,6.6386]
[1745530565404,16.33445502,150.6,150.57,6.6386]
[1745530565597,9.69695502,150.6,150.54,33.97695502]
[1745530566203,16.33445502,150.6,150.54,33.97695502]
[1745530566503,9.69695502,150.6,150.54,33.97695502]
[1745530567106,9.69695502,150.6,150.57,6.6383]
[1745530567305,9.69695502,150.6,150.56,9.69695502]
[1745530567605,9.69695502,150.6,150.58,6.6378]
[1745530567808,11.64885502,150.62,150.58,6.6378]
[1745530568107,18.28545502,150.62,150.56,9.69695502]
[1745530568806,1.8815,150.64,150.54,24.28]
[1745530569011,9.69695502,150.63,150.57,9.69695502]
[1745530569205,9.69695502,150.63,150.58,24.28]
[1745530569911,9.69695502,150.63,150.61,6.6366]
[1745530570106,9.69695502,150.64,150.59,9.69695502]
[1745530570303,40.61205502,150.65,150.59,9.69695502]
[1745530570510,24.28,150.65,150.59,9.69695502]
[1745530570712,9.69695502,150.66,150.61,9.69695502]
[1745530571504,9.69695502,150.66,150.64,6.6353]
[1745530571706,9.69695502,150.66,150.62,24.28]
[1745530572113,9.69695502,150.66,150.65,6.6351]
[1745530572313,9.69695502,150.67,150.65,6.6351]
[1745530572913,9.69695502,150.67,150.66,6.6346]
[1745530574011,6.6335,150.69,150.66,6.6346]
[1745530574313,9.69695502,150.69,150.63,9.69695502]
[1745530574915,9.69695502,150.69,150.67,6.6338]
[1745530575317,16.33025502,150.69,150.67,6.6338]
[1745530575918,9.69695502,150.69,150.62,24.28]
[1745530576114,9.69695502,150.65,150.62,24.28]
[1745530576417,9.69695502,150.63,150.59,36.01375502]
[1745530576617,9.69695502,150.63,150.61,6.6365]
[1745530577319,9.69695502,150.63,150.62,6.6364]
[1745530580622,24.28,150.67,150.62,6.6364]
[1745530580623,9.69695502,150.65,150.62,6.6364]
[1745530581221,9.69695502,150.63,150.56,24.28]
[1745530581526,9.69695502,150.59,150.54,11.59665502]
[1745530581723,6.6386,150.57,150.54,16.33665502]
[1745530582123,9.69695502,150.59,150.52,33.97695502]
[1745530582324,6.6389,150.57,150.54,6.6398]
[1745530582718,6.6389,150.57,150.52,33.97695502]
[1745530582719,9.69695502,150.57,150.5,11.59665502]
[1745530582919,6.64,150.54,150.51,6.641]
[1745530584722,16.33655502,150.55,150.52,6.6407]
[1745530588331,16.33655502,150.55,150.53,6.6403]
[1745530589930,9.69695502,150.55,150.53,6.6403]
[1745530591736,16.33615502,150.56,150.53,6.6403]
[1745530594435,11.60555502,150.58,150.53,9.69695502]
[1745530594636,9.69695502,150.58,150.53,9.69695502]
[1745530595133,16.33535502,150.58,150.55,6.6392]
[1745530600651,16.33535502,150.58,150.56,6.639]
[1745530600951,6.6386,150.57,150.53,9.69695502]
[1745530601150,9.69695502,150.58,150.53,9.69695502]
[1745530601951,6.6387,150.57,150.54,6.6396]
[1745530604054,6.6391,150.56,150.54,6.6396]
[1745530604257,9.69695502,150.58,150.54,6.6396]
[1745530604654,6.639,150.57,150.54,6.6396]
[1745530608055,6.6392,150.56,150.54,6.6396]
[1745530611559,6.6388,150.57,150.54,6.6396]
[1745530611760,9.69695502,150.58,150.51,33.95695502]
[1745530612960,6.6393,150.56,150.54,6.6397]
[1745530613162,9.69695502,150.58,150.54,6.6397]
[1745530613462,9.69695502,150.59,150.53,9.69695502]
[1745530615158,9.69695502,150.57,150.53,9.69695502]
[1745530615357,9.69695502,150.57,150.52,1.9573]
[1745530615763,6.6393,150.56,150.53,6.6402]
[1745530616461,9.69695502,150.55,150.51,24.26]
[1745530616854,9.69695502,150.53,150.48,33.95695502]
[1745530617257,9.69695502,150.53,150.47,11.55675502]
[1745530617460,9.69695502,150.51,150.47,11.55675502]
[1745530617762,9.69695502,150.51,150.49,6.6419]
[1745530618862,6.6406,150.53,150.5,6.6416]
[1745530619062,16.33755502,150.53,150.5,6.6416]
[1745530619263,9.69695502,150.53,150.5,6.6416]
[1745530620168,16.33765502,150.53,150.5,6.6416]
[1745530620563,9.69695502,150.53,150.5,6.6416]
[1745530621470,16.33745502,150.53,150.5,6.6416]
[1745530621664,9.69695502,150.53,150.49,6.6419]
[1745530622165,6.6411,150.52,150.49,6.6419]
[1745530623067,16.33765502,150.53,150.5,6.6416]
[1745530627067,6.6407,150.53,150.5,6.6416]
[1745530627368,16.33765502,150.53,150.5,6.6416]
[1745530629869,16.33765502,150.53,150.51,6.6412]
[1745530630070,9.69695502,150.53,150.47,1.8598]
[1745530630273,9.69695502,150.51,150.47,1.8598]
[1745530630771,9.69695502,150.51,150.46,35.92205502]
[1745530630972,9.69695502,150.51,150.46,33.95695502]
[1745530631169,9.69695502,150.51,150.47,6.6428]
[1745530631365,6.6419,150.5,150.47,6.6428]
[1745530634969,6.6419,150.5,150.44,9.69695502]
[1745530635568,6.6419,150.5,150.47,6.6426]
[1745530635967,6.6419,150.5,150.44,9.69695502]
[1745530636169,6.6419,150.5,150.48,6.6422]
[1745530638175,9.69695502,150.49,150.43,9.69695502]
[1745530638375,9.69695502,150.49,150.42,9.69695502]
[1745530638576,9.69695502,150.47,150.42,9.69695502]
[1745530639076,9.69695502,150.47,150.43,6.6444]
[1745530639077,6.6437,150.46,150.43,6.6444]
[1745530639575,6.6437,150.46,150.42,9.69695502]
[1745530640578,6.6437,150.46,150.44,6.6441]
[1745530643482,33.95695502,150.51,150.44,9.69695502]
[1745530643882,6.6423,150.49,150.46,6.643]
[1745530644083,6.6423,150.49,150.44,9.69695502]
[1745530644387,6.6423,150.49,150.47,6.6429]
[1745530645182,9.69695502,150.51,150.44,9.69695502]
[1745530646082,6.6421,150.49,150.47,6.6427]
[1745530646876,16.33905502,150.49,150.47,6.6427]
[1745530647584,9.69695502,150.49,150.47,6.6427]
[1745530648483,9.69695502,150.49,150.48,6.6426]
[1745530649384,16.33885502,150.5,150.48,6.6426]
[1745530649584,3.9157,150.54,150.46,9.69695502]
[1745530649779,9.69695502,150.52,150.46,9.69695502]
[1745530650181,9.69695502,150.52,150.5,6.6416]
[1745530652385,9.69695502,150.52,150.46,9.69695502]
[1745530652986,9.69695502,150.52,150.5,6.6414]
[1745530653186,9.69695502,150.52,150.45,1.9386]
[1745530653589,9.69695502,150.52,150.46,9.69695502]
[1745530654785,9.69695502,150.52,150.49,6.642]
[1745530656286,6.6413,150.51,150.49,6.642]
[1745530656891,28.1757,150.54,150.5,6.6416]
[1745530657188,9.69695502,150.53,150.5,6.6416]
[1745530657590,16.33755502,150.53,150.5,6.6416]
[1745530657986,16.33755502,150.53,150.51,6.6412]
[1745530658186,9.69695502,150.53,150.51,6.6412]
[1745530658386,9.69695502,150.53,150.48,9.69695502]
[1745530658586,24.26,150.54,150.5,9.69695502]
[1745530658789,9.69695502,150.55,150.5,9.69695502]
[1745530659186,9.69695502,150.55,150.54,6.6399]
[1745530660081,33.95695502,150.57,150.52,9.69695502]
[1745530660285,24.26,150.57,150.52,9.69695502]
[1745530660582,16.33485502,150.59,150.57,6.6384]
[1745530660889,9.69695502,150.59,150.57,6.6384]
[1745530661291,16.33465502,150.59,150.57,6.6384]
[1745530661590,9.69695502,150.59,150.57,6.6384]
[1745530661791,9.69695502,150.59,150.58,6.6381]
[1745530661990,9.69695502,150.59,150.54,9.69695502]
[1745530662391,9.69695502,150.59,150.57,6.6384]
[1745530663291,9.69695502,150.59,150.57,6.6382]
[1745530664094,16.33465502,150.59,150.57,6.6382]
[1745530664796,9.69695502,150.59,150.57,6.6382]
[1745530665595,16.33475502,150.59,150.57,6.6382]
[1745530668402,9.69695502,150.59,150.57,6.6382]
[1745530669005,9.69695502,150.59,150.57,6.6384]
[1745530669195,9.69695502,150.59,150.54,9.69695502]
[1745530669596,9.69695502,150.59,150.57,6.6383]
[1745530672505,9.69695502,150.59,150.58,6.6381]
[1745530684616,9.69695502,150.59,150.53,11.68035502]
[1745530685813,6.6384,150.58,150.53,11.68035502]
[1745530686014,9.69695502,150.59,150.53,11.68035502]
[1745530686416,16.33485502,150.59,150.56,6.6388]
[1745530686917,6.6384,150.58,150.55,6.6391]
[1745530687315,6.6384,150.58,150.53,11.68035502]
[1745530688717,9.69695502,150.57,150.52,24.26]
[1745530688913,9.69695502,150.55,150.52,24.26]
[1745530689113,9.69695502,150.55,150.5,9.69695502]
[1745530689814,9.69695502,150.55,150.53,6.64]
[1745530690614,9.69695502,150.55,150.54,6.6399]
[1745530691915,9.69695502,150.55,150.53,6.6401]
[1745530692915,16.33655502,150.55,150.53,6.6401]
[1745530693120,9.69695502,150.55,150.49,24.24]
[1745530693319,9.69695502,150.51,150.46,33.93695502]
[1745530693617,9.69695502,150.49,150.43,39.82045502]
[1745530694320,9.69695502,150.49,150.43,26.137]
[1745530694615,9.69695502,150.47,150.41,9.69695502]
[1745530694812,365.9583,150.57,150.38,11.69265502]
[1745530694813,24.24,150.46,150.38,11.69265502]
[1745530695014,9.69695502,150.43,150.37,33.93695502]
[1745530695414,6.6457,150.41,150.37,33.93695502]
[1745530695823,6.6457,150.41,150.38,6.6466]
[1745530696014,6.6453,150.42,150.38,6.6466]
[1745530697122,6.6453,150.42,150.39,6.6464]
[1745530697323,9.69695502,150.43,150.39,6.6464]
[1745530699023,9.69695502,150.43,150.4,6.646]
[1745530700622,5.9489,150.49,150.37,33.93695502]
[1745530700623,9.69695502,150.46,150.41,9.69695502]
[1745530701220,24.24,150.47,150.41,9.69695502]
[1745530701524,9.69695502,150.48,150.41,33.93695502]
[1745530701724,9.69695502,150.48,150.46,6.6432]
[1745530703129,9.69695502,150.48,150.41,33.93695502]
[1745530703322,9.69695502,150.46,150.41,33.93695502]
[1745530703825,9.69695502,150.46,150.43,6.6444]
[1745530704429,16.34065502,150.46,150.43,6.6444]
[1745530705631,16.34065502,150.46,150.44,6.6443]
[1745530706332,9.69695502,150.46,150.44,6.6443]
[1745530707533,16.33975502,150.48,150.41,33.93695502]
[1745530709233,9.69695502,150.48,150.41,33.93695502]
[1745530709733,16.33955502,150.48,150.44,6.6441]
[1745530710835,16.33955502,150.48,150.45,6.6439]
[1745530712136,6.643,150.47,150.44,6.6441]
[1745530713435,9.69695502,150.48,150.41,33.93695502]
[1745530713739,24.24,150.5,150.43,9.69695502]
[1745530713931,40.57885502,150.5,150.47,6.6427]
[1745530714330,30.8819,150.5,150.47,6.6427]
[1745530714530,6.6433,150.47,150.41,33.93695502]
[1745530714731,9.69695502,150.46,150.41,33.93695502]
[1745530715143,9.69695502,150.46,150.44,6.6439]
[1745530715336,16.33955502,150.48,150.43,9.69695502]
[1745530715536,6.6426,150.48,150.43,9.69695502]
[1745530715840,16.33925502,150.49,150.46,6.6432]
[1745530717537,6.6426,150.48,150.46,6.6432]
[1745530717837,6.6426,150.48,150.45,6.6438]
[1745530718136,6.6426,150.48,150.46,6.6433]
[1745530720348,16.33925502,150.49,150.46,6.6433]
[1745530721543,9.69695502,150.49,150.46,6.6433]
[1745530722137,6.6426,150.48,150.45,6.6437]
[1745530722644,6.6426,150.48,150.46,6.6434]
[1745530723144,16.33925502,150.49,150.46,6.6434]
[1745530725844,16.33925502,150.49,150.47,6.643]
[1745530727847,16.33925502,150.49,150.46,6.6432]
[1745530732843,6.6427,150.48,150.46,6.6432]
[1745530733754,6.6427,150.48,150.45,6.6436]
[1745530733951,9.69695502,150.47,150.38,33.93695502]
[1745530734148,9.69695502,150.44,150.38,24.24]
[1745530734349,6.6459,150.41,150.37,5.7875]
[1745530734650,9.69695502,150.4,150.37,2.0098]
[1745530735057,9.69695502,150.4,150.35,24.24]
[1745530735254,6.6466,150.39,150.37,6.6473]
[1745530740661,16.34325502,150.4,150.37,6.6473]
[1745530742157,6.6463,150.4,150.37,6.6473]
[1745530742653,16.34325502,150.4,150.37,6.6473]
[1745530745061,9.69695502,150.4,150.38,6.6469]
[1745530746258,16.34305502,150.4,150.38,6.6469]
[1745530746459,24.24,150.42,150.39,6.6465]
[1745530746859,30.8854,150.42,150.39,6.6465]
[1745530747053,24.24,150.42,150.39,6.6465]
[1745530747452,24.24,150.42,150.4,6.646]
[1745530749057,16.34195502,150.43,150.4,6.646]
[1745530749563,33.93695502,150.45,150.38,9.69695502]
[1745530749758,33.93695502,150.45,150.39,26.2481]
[1745530749958,33.93695502,150.45,150.43,6.6443]
[1745530750258,9.69695502,150.45,150.43,6.6443]
[1745530750563,9.69695502,150.45,150.44,6.6443]
[1745530750866,16.34015502,150.47,150.4,9.69695502]
[1745530751365,16.34015502,150.47,150.44,6.6439]
[1745530751763,9.69695502,150.47,150.4,9.69695502]
[1745530751964,9.69695502,150.47,150.42,9.69695502]
[1745530753568,9.69695502,150.47,150.45,6.6435]
[1745530755262,9.69695502,150.47,150.46,6.6434]
[1745530756266,6.6426,150.48,150.46,6.6434]
[1745530756466,9.69695502,150.5,150.44,9.69695502]
[1745530756666,9.69695502,150.5,150.44,33.93695502]
[1745530756968,16.33885502,150.5,150.45,1.8871]
[1745530757868,16.33885502,150.5,150.47,6.6427]
[1745530758173,9.69695502,150.5,150.45,1.8871]
[1745530759169,9.69695502,150.5,150.48,6.6423]
[1745530759365,6.641,150.52,150.46,9.69695502]
[1745530759564,16.33795502,150.52,150.46,9.69695502]
[1745530759770,9.69695502,150.52,150.46,13.59865502]
[1745530759965,9.69695502,150.52,150.5,6.6414]
[1745530761071,9.69695502,150.53,150.48,24.24]
[1745530761962,9.69695502,150.51,150.48,24.24]
[1745530762363,9.69695502,150.51,150.48,6.6423]
[1745530762563,9.69695502,150.51,150.46,3.9017]
[1745530762973,9.69695502,150.52,150.49,6.6418]
[1745530764074,16.33775502,150.52,150.49,6.6418]
[1745530766478,16.33775502,150.52,150.5,6.6417]
[1745530766666,9.69695502,150.52,150.5,6.6417]
[1745530768376,16.33775502,150.52,150.5,6.6417]
[1745530768680,9.69695502,150.52,150.5,6.6417]
[1745530770579,9.69695502,150.52,150.51,6.6412]
[1745530772085,24.24,150.54,150.48,9.69695502]
[1745530772280,9.69695502,150.54,150.48,9.69695502]
[1745530772482,24.22,150.57,150.49,24.22]
[1745530772683,9.69695502,150.55,150.49,24.22]
[1745530772883,9.69695502,150.55,150.5,9.69695502]
[1745530773188,9.69695502,150.55,150.54,6.6399]
[1745530782491,33.91695502,150.57,150.55,6.6394]
[1745530783393,24.2,150.6,150.51,2.0375]
[1745530783593,9.69695502,150.58,150.52,9.69695502]
[1745530783998,9.69695502,150.58,150.53,24.2]
[1745530784598,9.69695502,150.58,150.57,6.6383]
[1745530784999,33.89695502,150.6,150.54,9.69695502]
[1745530785198,33.89695502,150.6,150.58,6.6379]
[1745530785398,9.69695502,150.6,150.58,6.6379]
[1745530786101,16.33425502,150.6,150.58,6.6379]
[1745530800113,16.33425502,150.6,150.57,6.6383]
[1745530800415,24.2,150.66,150.58,9.69695502]
[1745530800610,9.69695502,150.65,150.63,6.6356]
[1745530800912,9.69695502,150.66,150.61,24.2]
[1745530801112,9.69695502,150.64,150.59,37.73015502]
[1745530801410,9.69695502,150.64,150.63,6.6358]
[1745530801613,9.69695502,150.65,150.59,37.73015502]
[1745530801914,9.69695502,150.65,150.64,6.6355]
[1745530802616,9.69695502,150.65,150.63,6.6358]
[1745530803217,9.69695502,150.65,150.62,6.6361]
[1745530803518,9.69695502,150.63,150.59,24.2]
[1745530803718,16.33315502,150.63,150.6,6.637]
[1745530804519,6.6364,150.62,150.6,6.637]
[1745530805220,16.33305502,150.63,150.6,6.637]
[1745530806816,9.69695502,150.63,150.59,6.6375]
[1745530807023,9.69695502,150.61,150.59,6.6375]
[1745530807523,16.33375502,150.61,150.59,6.6375]
[1745530807825,9.69695502,150.61,150.58,6.6381]
[1745530808221,16.33395502,150.61,150.58,6.6381]
[1745530808522,16.33395502,150.61,150.59,6.6377]
[1745530810327,9.69695502,150.61,150.59,6.6377]
[1745530810925,16.33375502,150.61,150.59,6.6377]
[1745530812623,6.6368,150.61,150.59,6.6377]
[1745530814525,16.33355502,150.62,150.59,6.6377]
[1745530814729,16.33355502,150.62,150.6,6.6372]
[1745530814926,16.33355502,150.62,150.55,33.87695502]
[1745530815424,16.33355502,150.62,150.59,6.6374]
[1745530816327,16.33355502,150.62,150.6,6.6372]
[1745530817430,9.69695502,150.62,150.61,6.6368]
[1745530827036,13.54205502,150.64,150.57,9.69695502]
[1745530827640,20.17785502,150.64,150.57,9.69695502]
[1745530828542,20.17785502,150.64,150.61,6.6364]
[1745530831246,6.636,150.63,150.61,6.6364]
[1745530833846,6.636,150.63,150.6,6.6371]
[1745530835250,6.636,150.63,150.61,6.6368]
[1745530835545,6.6364,150.62,150.57,9.69695502]
[1745530836048,6.6364,150.62,150.6,6.637]
[1745530836849,6.6362,150.63,150.6,6.637]
[1745530840850,6.6364,150.62,150.6,6.637]
[1745530841150,9.69695502,150.64,150.6,6.637]
[1745530841552,6.6362,150.63,150.6,6.637]
[1745530842450,6.6364,150.62,150.6,6.637]
[1745530844452,6.6368,150.61,150.59,6.6375]
[1745530844652,9.69695502,150.62,150.55,9.69695502]
[1745530845751,9.69695502,150.6,150.56,6.6388]
[1745530846155,6.6378,150.59,150.56,6.6388]
[1745530848955,6.6378,150.59,150.57,6.6385]
[1745530855160,16.33435502,150.6,150.57,6.6385]
[1745530858062,16.33435502,150.6,150.58,6.6381]
[1745530858262,16.33435502,150.6,150.54,33.87695502]
[1745530859058,16.33435502,150.6,150.57,6.6383]
[1745530860667,9.69695502,150.58,150.52,15.60475502]
[1745530860961,9.69695502,150.56,150.52,2.0196]
[1745530861362,9.69695502,150.56,150.52,8.6602]
[1745530861560,9.69695502,150.54,150.48,37.67675502]
[1745530861758,9.69695502,150.54,150.48,39.59065502]
[1745530861959,9.69695502,150.54,150.51,6.641]
[1745530862261,9.69695502,150.54,150.48,39.59065502]
[1745530863366,9.69695502,150.54,150.53,6.6404]
[1745530866770,9.69695502,150.56,150.54,6.6399]
[1745530867070,24.16,150.57,150.53,9.69695502]
[1745530867271,24.16,150.57,150.56,6.639]
[1745530867667,33.85695502,150.61,150.55,9.69695502]
[1745530868570,40.49395502,150.61,150.59,6.6375]
[1745530871572,33.85695502,150.61,150.6,6.6373]
[1745530878481,33.85695502,150.61,150.59,6.6375]
[1745530878676,33.85695502,150.61,150.53,9.69695502]
[1745530878877,9.69695502,150.58,150.53,9.69695502]
[1745530879576,24.16,150.61,150.51,24.16]
[1745530879577,9.69695502,150.56,150.54,6.6396]
[1745530880179,9.69695502,150.56,150.55,6.6395]
[1745530882080,16.33535502,150.58,150.55,6.6395]
[1745530885985,6.6386,150.57,150.55,6.6395]
[1745530886588,16.33535502,150.58,150.55,6.6395]
[1745530888388,16.33535502,150.58,150.56,6.639]
[1745530890586,24.16,150.61,150.54,9.69695502]
[1745530890881,33.85695502,150.61,150.54,9.69695502]
[1745530891387,40.49395502,150.61,150.58,6.6378]
[1745530891586,40.49395502,150.61,150.54,9.69695502]
[1745530892285,33.85695502,150.61,150.54,9.69695502]
[1745530892485,33.85695502,150.61,150.59,6.6375]
[1745530892984,24.16,150.61,150.6,6.6373]
[1745530893488,24.16,150.64,150.6,9.69695502]
[1745530894287,24.16,150.64,150.63,6.6359]
[1745530894792,40.49115502,150.67,150.6,33.85695502]
[1745530894993,40.49115502,150.67,150.61,1.9511]
[1745530895589,40.49115502,150.67,150.65,6.635]
[1745530896588,33.85695502,150.67,150.65,6.635]
[1745530897695,33.85695502,150.67,150.66,6.6346]
[1745530898194,9.69695502,150.69,150.64,9.69695502]
[1745530898592,9.69695502,150.69,150.67,6.6339]
[1745530903902,16.33025502,150.69,150.67,6.6339]
[1745530904205,16.33025502,150.69,150.63,9.69695502]
[1745530904206,16.33025502,150.69,150.66,6.6345]
[1745530904901,16.33025502,150.69,150.67,6.6342]
[1745530906203,9.69695502,150.69,150.67,6.6342]
[1745530907605,9.69695502,150.69,150.6,33.85695502]
[1745530907808,9.69695502,150.65,150.6,33.85695502]
[1745530908107,9.69695502,150.65,150.63,6.6358]
[1745530913914,9.69695502,150.65,150.64,6.6355]
[1745530918315,6.6349,150.66,150.64,6.6355]
[1745530922512,16.33135502,150.67,150.64,6.6355]
[1745530922712,9.69695502,150.69,150.63,9.69695502]
[1745530923214,16.33045502,150.69,150.63,9.69695502]
[1745530923811,16.33045502,150.69,150.67,6.634]
[1745530925314,9.69695502,150.69,150.68,6.6337]
[1745530932220,24.14,150.7,150.68,6.6337]
[1745530932618,9.69695502,150.69,150.68,6.6337]
[1745530933518,24.14,150.7,150.68,6.6337]
[1745530933919,9.69695502,150.69,150.68,6.6337]
[1745530934619,9.69695502,150.69,150.6,9.69695502]
[1745530934813,9.69695502,150.64,150.59,9.69695502]
[1745530935021,9.69695502,150.6,150.55,26.1572]
[1745530935321,9.69695502,150.6,150.55,2.0372]
[1745530935518,9.69695502,150.6,150.54,9.69695502]
[1745530935719,9.69695502,150.58,150.53,9.69695502]
[1745530936119,24.12,150.57,150.5,13.64747162]
[1745530936423,24.12,150.57,150.51,9.69695502]
[1745530937021,24.12,150.57,150.53,6.6403]
[1745530937620,24.12,150.57,150.53,16.33725502]
[1745530937815,24.12,150.57,150.53,9.69695502]
[1745530938723,24.12,150.57,150.54,6.6396]